fUSD/lending_fUSD_20250207
["ID","MTS","AMOUNT","RATE_DAILY","PERIOD"]
[352091886,1738944641440,-500.0,0.00016438,2]
[352091887,1738944641450,-734.89,0.00016438,2]
[352091889,1738944641459,-500.0,0.00016438,2]
[352091890,1738944641468,-500.0,0.00016438,2]
[352091892,1738944641477,-500.0,0.00016438,2]
[352091894,1738944641487,-500.0,0.00016438,2]
[352091895,1738944641497,-500.0,0.00016438,2]
[352091897,1738944641506,-500.0,0.00016438,2]
[352091898,1738944641515,-500.0,0.00016438,2]
[352091900,1738944641525,-533.44363414,0.00016438,2]
[352091902,1738944641534,-500.0,0.00016438,2]
[352091903,1738944641543,-500.0,0.00016438,2]
[352091905,1738944641552,-502.52407061,0.00016438,2]
[352091906,1738944641561,-500.0,0.00016438,2]
[352091908,1738944641570,-500.0,0.00016438,2]
[352091910,1738944641582,-500.0,0.00016438,2]
[352091911,1738944641592,-500.0,0.00016438,2]
[352091913,1738944641601,-775.19,0.00016438,2]
[352091915,1738944641610,-500.0,0.00016438,2]
[352091916,1738944641619,-500.0,0.00016438,2]
[352091918,1738944641629,-500.0,0.00016438,2]
[352091920,1738944641639,-500.0,0.00016438,2]
[352091921,1738944641648,-502.88615164,0.00016438,2]
[352091923,1738944641659,-276.3,0.00016438,2]
[352091924,1738944641669,-500.0,0.00016438,2]
[352091926,1738944641679,-500.0,0.00016438,2]
[352091928,1738944641693,-304.40189958,0.00016438,2]
[352091951,1738944642127,-195.59810042,0.00016438,2]
[352091952,1738944642136,-500.81397141,0.00016438,2]
[352091953,1738944642146,-500.0,0.00016438,2]
[352091954,1738944642157,-500.0,0.00016438,2]
[352091955,1738944642167,-236.34197352,0.00016438,2]
[352091957,1738944642179,-263.65802648,0.00016438,2]
[352091958,1738944642188,-500.0,0.00016438,2]
[352091960,1738944642198,-500.0,0.00016438,2]
[352091962,1738944642208,-500.0,0.00016438,2]
[352091964,1738944642218,-500.0,0.00016438,2]
[352091966,1738944642227,-500.0,0.00016438,2]
[352091968,1738944642237,-500.0,0.00016438,2]
[352091970,1738944642246,-78.16492716,0.00016438,2]
[352091972,1738944642259,-421.83507284,0.00016438,2]
[352091974,1738944642268,-645.32,0.00016438,2]
[352091976,1738944642278,-500.0,0.00016438,2]
[352091978,1738944642288,-500.0,0.00016438,2]
[352091980,1738944642299,-500.0,0.00016438,2]
[352091983,1738944642308,-724.56,0.00016438,2]
[352091984,1738944642318,-500.73736404,0.00016438,2]
[352091986,1738944642328,-500.0,0.00016438,2]
[352091988,1738944642340,-500.0,0.00016438,2]
[352091991,1738944642350,-500.0,0.00016438,2]
[352091992,1738944642360,-834.79,0.00016438,2]
[352091995,1738944642369,-500.0,0.00016438,2]
[352091996,1738944642379,-500.0,0.00016438,2]
[352091998,1738944642389,-500.0,0.00016438,2]
[352092001,1738944642399,-500.0,0.00016438,2]
[352092003,1738944642408,-500.0,0.00016438,2]
[352092005,1738944642418,-500.0,0.00016438,2]
[352092007,1738944642428,-500.0,0.00016438,2]
[352092009,1738944642437,-500.0,0.00016438,2]
[352092010,1738944642446,-496.20418282,0.00016438,2]
[352092012,1738944642456,-500.0,0.00016438,2]
[352092015,1738944642465,-500.0,0.00016438,2]
[352092017,1738944642475,-500.0,0.00016438,2]
[352092020,1738944642486,-500.0,0.00016438,2]
[352092023,1738944642496,-501.08771582,0.00016438,2]
[352092026,1738944642505,-612.55,0.00016438,2]
[352092029,1738944642515,-500.0,0.00016438,2]
[352092032,1738944642524,-500.0,0.00016438,2]
[352092034,1738944642533,-500.0,0.00016438,2]
[352092035,1738944642543,-500.0,0.00016438,2]
[352092037,1738944642552,-500.0,0.00016438,2]
[352092039,1738944642562,-500.0,0.00016438,2]
[352092042,1738944642574,-500.0,0.00016438,2]
[352092044,1738944642586,-500.0,0.00016438,2]
[352092046,1738944642596,-500.0,0.00016438,2]
[352092048,1738944642605,-500.0,0.00016438,2]
[352092050,1738944642614,-500.0,0.00016438,2]
[352092052,1738944642623,-500.0,0.00016438,2]
[352092055,1738944642632,-500.0,0.00016438,2]
[352092058,1738944642641,-500.0,0.00016438,2]
[352092061,1738944642651,-500.0,0.00016438,2]
[352092064,1738944642659,-500.0,0.00016438,2]
[352092067,1738944642669,-500.0,0.00016438,2]
[352092069,1738944642682,-500.0,0.00016438,2]
[352092072,1738944642691,-500.0,0.00016438,2]
[352092076,1738944642700,-500.0,0.00016438,2]
[352092078,1738944642710,-500.0,0.00016438,2]
[352092081,1738944642720,-695.4,0.00016438,2]
[352092084,1738944642729,-500.0,0.00016438,2]
[352092087,1738944642739,-501.41709868,0.00016438,2]
[352092090,1738944642749,-500.0,0.00016438,2]
[352092093,1738944642759,-500.0,0.00016438,2]
[352092096,1738944642772,-500.88308832,0.00016438,2]
[352092099,1738944642781,-500.0,0.00016438,2]
[352092102,1738944642790,-500.0,0.00016438,2]
[352092105,1738944642799,-500.0,0.00016438,2]
[352092108,1738944642809,-501.84664367,0.00016438,2]
[352092111,1738944642819,-500.0,0.00016438,2]
[352092114,1738944642828,-500.0,0.00016438,2]
[352092116,1738944642840,-500.0,0.00016438,2]
[352092119,1738944642849,-500.0,0.00016438,2]
[352092122,1738944642859,-500.0,0.00016438,2]
[352092125,1738944642868,-500.0,0.00016438,2]
[352092128,1738944642878,-500.0,0.00016438,2]
[352092132,1738944642887,-501.61710069,0.00016438,2]
[352092135,1738944642897,-500.0,0.00016438,2]
[352092138,1738944642907,-500.0,0.00016438,2]
[352092141,1738944642917,-500.0,0.00016438,2]
[352092143,1738944642926,-500.0,0.00016438,2]
[352092146,1738944642935,-500.0,0.00016438,2]
[352092149,1738944642945,-500.0,0.00016438,2]
[352092152,1738944642954,-534.08,0.00016438,2]
[352092155,1738944642963,-500.0,0.00016438,2]
[352092158,1738944642972,-500.0,0.00016438,2]
[352092161,1738944642981,-500.0,0.00016438,2]
[352092164,1738944642992,-328.63491196,0.00016438,2]
[352092167,1738944643001,-500.0,0.00016438,2]
[352092170,1738944643011,-518.03159932,0.00016438,2]
[352092173,1738944643020,-500.0,0.00016438,2]
[352092176,1738944643028,-501.44893416,0.00016438,2]
[352092179,1738944643038,-500.0,0.00016438,2]
[352092181,1738944643046,-500.0,0.00016438,2]
[352092184,1738944643055,-503.24249524,0.00016438,2]
[352092186,1738944643064,-500.0,0.00016438,2]
[352092190,1738944643074,-500.0,0.00016438,2]
[352092193,1738944643088,-500.0,0.00016438,2]
[352092196,1738944643098,-634.3283745,0.00016438,2]
[352092198,1738944643107,-500.0,0.00016438,2]
[352092202,1738944643116,-500.0,0.00016438,2]
[352092204,1738944643125,-500.81072979,0.00016438,2]
[352092207,1738944643134,-500.0,0.00016438,2]
[352092210,1738944643143,-500.0,0.00016438,2]
[352092213,1738944643152,-500.0,0.00016438,2]
[352092216,1738944643161,-500.0,0.00016438,2]
[352092219,1738944643171,-348.39262113,0.00016438,2]
[352092222,1738944643180,-500.0,0.00016438,2]
[352092225,1738944643189,-155.453845,0.00016438,2]
[352092227,1738944643199,-500.0,0.00016438,2]
[352092229,1738944643207,-500.0,0.00016438,2]
[352092231,1738944643216,-500.0,0.00016438,2]
[352092233,1738944643226,-500.0,0.00016438,2]
[352092235,1738944643235,-270.68973345,0.00016438,2]
[352092237,1738944643244,-500.0,0.00016438,2]
[352092240,1738944643253,-500.0,0.00016438,2]
[352092243,1738944643262,-500.0,0.00016438,2]
[352092246,1738944643272,-500.0,0.00016438,2]
[352092249,1738944643285,-528.51,0.00016438,2]
[352092252,1738944643301,-500.0,0.00016438,2]
[352092255,1738944643311,-500.0,0.00016438,2]
[352092258,1738944643321,-500.0,0.00016438,2]
[352092261,1738944643333,-500.0,0.00016438,2]
[352092264,1738944643342,-797.47,0.00016438,2]
[352092266,1738944643351,-500.0,0.00016438,2]
[352092269,1738944643360,-500.0,0.00016438,2]
[352092272,1738944643369,-850.12,0.00016438,2]
[352092275,1738944643379,-500.0,0.00016438,2]
[352092278,1738944643388,-502.5346196,0.00016438,2]
[352092281,1738944643399,-500.0,0.00016438,2]
[352092284,1738944643408,-500.0,0.00016438,2]
[352092287,1738944643417,-500.0,0.00016438,2]
[352092290,1738944643426,-513.35,0.00016438,2]
[352092293,1738944643435,-500.0,0.00016438,2]
[352092296,1738944643445,-500.0,0.00016438,2]
[352092299,1738944643454,-502.68395473,0.00016438,2]
[352092302,1738944643463,-483.8,0.00016438,2]
[352092305,1738944643472,-45.97027591,0.00016438,2]
[352092309,1738944643488,-454.02972409,0.00016438,2]
[352092313,1738944643498,-500.0,0.00016438,2]
[352092315,1738944643507,-500.0,0.00016438,2]
[352092319,1738944643517,-500.0,0.00016438,2]
[352092321,1738944643528,-1045.246431,0.00016438,2]
[352092323,1738944643537,-500.0,0.00016438,2]
[352092325,1738944643546,-500.0,0.00016438,2]
[352092327,1738944643555,-500.0,0.00016438,2]
[352092329,1738944643565,-500.0,0.00016438,2]
[352092331,1738944643574,-500.0,0.00016438,2]
[352092333,1738944643588,-500.0,0.00016438,2]
[352092335,1738944643598,-759.36,0.00016438,2]
[352092337,1738944643607,-500.0,0.00016438,2]
[352092339,1738944643618,-500.0,0.00016438,2]
[352092341,1738944643628,-500.0,0.00016438,2]
[352092343,1738944643638,-500.0,0.00016438,2]
[352092345,1738944643647,-500.0,0.00016438,2]
[352092347,1738944643657,-975.921273,0.00016438,2]
[352092349,1738944643668,-500.0,0.00016438,2]
[352092351,1738944643677,-504.18644343,0.00016438,2]
[352092353,1738944643690,-500.0,0.00016438,2]
[352092355,1738944643700,-500.0,0.00016438,2]
[352092357,1738944643710,-501.5322132,0.00016438,2]
[352092359,1738944643719,-500.92195474,0.00016438,2]
[352092361,1738944643729,-536.95,0.00016438,2]
[352092362,1738944643738,-500.0,0.00016438,2]
[352092364,1738944643748,-500.0,0.00016438,2]
[352092366,1738944643757,-500.0,0.00016438,2]
[352092368,1738944643769,-500.0,0.00016438,2]
[352092370,1738944643780,-500.0,0.00016438,2]
[352092372,1738944643790,-500.0,0.00016438,2]
[352092374,1738944643800,-500.0,0.00016438,2]
[352092376,1738944643809,-500.0,0.00016438,2]
[352092378,1738944643819,-500.0,0.00016438,2]
[352092382,1738944643828,-163.493347,0.00016438,2]
[352092383,1738944643848,-500.0,0.00016438,2]
[352092387,1738944643858,-500.0,0.00016438,2]
[352092390,1738944643867,-500.0,0.00016438,2]
[352092392,1738944643876,-500.0,0.00016438,2]
[352092395,1738944643885,-498.52988441,0.00016438,2]
[352092398,1738944643895,-500.0,0.00016438,2]
[352092402,1738944643905,-500.0,0.00016438,2]
[352092404,1738944643915,-500.0,0.00016438,2]
[352092407,1738944643924,-500.0,0.00016438,2]
[352092410,1738944643933,-69.41915771,0.00016438,2]
[352092415,1738944643946,-431.18613706,0.00016438,2]
[352092418,1738944643955,-500.0,0.00016438,2]
[352092421,1738944643964,-503.08281878,0.00016438,2]
[352092424,1738944643973,-500.0,0.00016438,2]
[352092427,1738944643983,-500.0,0.00016438,2]
[352092430,1738944643992,-500.0,0.00016438,2]
[352092433,1738944644001,-785.68,0.00016438,2]
[352092436,1738944644010,-500.0,0.00016438,2]
[352092439,1738944644019,-500.0,0.00016438,2]
[352092442,1738944644028,-500.0,0.00016438,2]
[352092444,1738944644037,-500.0,0.00016438,2]
[352092447,1738944644046,-500.0,0.00016438,2]
[352092450,1738944644056,-500.0,0.00016438,2]
[352092452,1738944644066,-500.0,0.00016438,2]
[352092455,1738944644075,-500.0,0.00016438,2]
[352092458,1738944644086,-500.0,0.00016438,2]
[352092461,1738944644095,-500.0,0.00016438,2]
[352092464,1738944644105,-500.0,0.00016438,2]
[352092467,1738944644114,-500.0,0.00016438,2]
[352092470,1738944644123,-500.0,0.00016438,2]
[352092473,1738944644133,-500.38065032,0.00016438,2]
[352092474,1738944644143,-707.26,0.00016438,2]
[352092475,1738944644152,-500.0,0.00016438,2]
[352092476,1738944644161,-500.0,0.00016438,2]
[352092478,1738944644170,-501.34692844,0.00016438,2]
[352092480,1738944644180,-500.0,0.00016438,2]
[352092482,1738944644189,-500.0,0.00016438,2]
[352092484,1738944644199,-500.0,0.00016438,2]
[352092486,1738944644208,-500.0,0.00016438,2]
[352092488,1738944644217,-534.66,0.00016438,2]
[352092491,1738944644226,-500.0,0.00016438,2]
[352092493,1738944644235,-500.0,0.00016438,2]
[352092495,1738944644245,-174.462349,0.00016438,2]
[352092498,1738944644254,-500.0,0.00016438,2]
[352092502,1738944644268,-500.0,0.00016438,2]
[352092505,1738944644281,-533.06,0.00016438,2]
[352092507,1738944644290,-500.0,0.00016438,2]
[352092510,1738944644301,-500.0,0.00016438,2]
[352092514,1738944644312,-500.0,0.00016438,2]
[352092516,1738944644323,-500.0,0.00016438,2]
[352092519,1738944644336,-500.0,0.00016438,2]
[352092522,1738944644345,-500.0,0.00016438,2]
[352092525,1738944644355,-500.0,0.00016438,2]
[352092556,1738944644498,-500.0,0.00016438,2]
[352092559,1738944644508,-500.0,0.00016438,2]
[352092562,1738944644518,-500.0,0.00016438,2]
[352092565,1738944644527,-171.96316,0.00016438,2]
[352092568,1738944644537,-500.0,0.00016438,2]
[352092571,1738944644547,-500.0,0.00016438,2]
[352092574,1738944644556,-500.0,0.00016438,2]
[352092578,1738944644567,-500.0,0.00016438,2]
[352092581,1738944644577,-500.0,0.00016438,2]
[352092584,1738944644589,-500.0,0.00016438,2]
[352092586,1738944644598,-500.0,0.00016438,2]
[352092589,1738944644608,-500.0,0.00016438,2]
[352092591,1738944644617,-500.0,0.00016438,2]
[352092594,1738944644627,-500.0,0.00016438,2]
[352092597,1738944644636,-523.06,0.00016438,2]
[352092600,1738944644646,-500.0,0.00016438,2]
[352092602,1738944644655,-500.0,0.00016438,2]
[352092604,1738944644665,-500.0,0.00016438,2]
[352092608,1738944644679,-500.0,0.00016438,2]
[352092610,1738944644689,-294.22726114,0.00016438,2]
[352092612,1738944644699,-500.0,0.00016438,2]
[352092615,1738944644708,-500.0,0.00016438,2]
[352092618,1738944644719,-500.0,0.00016438,2]
[352092620,1738944644729,-500.0,0.00016438,2]
[352092623,1738944644738,-500.0,0.00016438,2]
[352092625,1738944644747,-500.0,0.00016438,2]
[352092628,1738944644756,-500.0,0.00016438,2]
[352092631,1738944644767,-535.46,0.00016438,2]
[352092633,1738944644777,-808.94,0.00016438,2]
[352092636,1738944644786,-500.0,0.00016438,2]
[352092639,1738944644795,-989.16,0.00016438,2]
[352092641,1738944644805,-500.0,0.00016438,2]
[352092644,1738944644814,-500.0,0.00016438,2]
[352092647,1738944644823,-500.0,0.00016438,2]
[352092650,1738944644834,-500.0,0.00016438,2]
[352092652,1738944644843,-500.0,0.00016438,2]
[352092655,1738944644853,-500.0,0.00016438,2]
[352092658,1738944644862,-743.11,0.00016438,2]
[352092660,1738944644871,-500.0,0.00016438,2]
[352092663,1738944644881,-643.45,0.00016438,2]
[352092666,1738944644890,-500.0,0.00016438,2]
[352092668,1738944644900,-500.0,0.00016438,2]
[352092671,1738944644909,-500.0,0.00016438,2]
[352092674,1738944644920,-500.0,0.00016438,2]
[352092676,1738944644931,-500.0,0.00016438,2]
[352092679,1738944644940,-500.0,0.00016438,2]
[352092682,1738944644950,-174.462348,0.00016438,2]
[352092685,1738944644959,-500.0,0.00016438,2]
[352092687,1738944644968,-505.57068722,0.00016438,2]
[352092690,1738944644977,-510.49,0.00016438,2]
[352092693,1738944644986,-500.0,0.00016438,2]
[352092695,1738944644996,-500.0,0.00016438,2]
[352092698,1738944645005,-636.19519579,0.00016438,2]
[352092701,1738944645014,-500.0,0.00016438,2]
[352092703,1738944645024,-500.0,0.00016438,2]
[352092706,1738944645033,-500.0,0.00016438,2]
[352092709,1738944645043,-500.0,0.00016438,2]
[352092712,1738944645052,-912.35,0.00016438,2]
[352092715,1738944645061,-500.0,0.00016438,2]
[352092717,1738944645071,-500.0,0.00016438,2]
[352092720,1738944645081,-169.119274,0.00016438,2]
[352092723,1738944645090,-500.0,0.00016438,2]
[352092726,1738944645099,-699.18,0.00016438,2]
[352092728,1738944645109,-500.0,0.00016438,2]
[352092731,1738944645119,-500.0,0.00016438,2]
[352092733,1738944645129,-634.12,0.00016438,2]
[352092735,1738944645138,-500.0,0.00016438,2]
[352092737,1738944645148,-1202.0,0.00016438,2]
[352092739,1738944645158,-611.89,0.00016438,2]
[352092741,1738944645167,-500.0,0.00016438,2]
[352092742,1738944645177,-500.0,0.00016438,2]
[352092745,1738944645188,-500.0,0.00016438,2]
[352092746,1738944645197,-500.0,0.00016438,2]
[352092748,1738944645207,-500.0,0.00016438,2]
[352092750,1738944645216,-500.0,0.00016438,2]
[352092753,1738944645228,-500.0,0.00016438,2]
[352092755,1738944645237,-500.0,0.00016438,2]
[352092757,1738944645247,-500.0,0.00016438,2]
[352092759,1738944645256,-500.0,0.00016438,2]
[352092761,1738944645265,-507.0814153,0.00016438,2]
[352092763,1738944645275,-643.57,0.00016438,2]
[352092765,1738944645283,-500.0,0.00016438,2]
[352092767,1738944645292,-500.0,0.00016438,2]
[352092768,1738944645301,-500.0,0.00016438,2]
[352092771,1738944645312,-500.0,0.00016438,2]
[352092773,1738944645322,-500.0,0.00016438,2]
[352092775,1738944645333,-172.32669441,0.00016438,2]
[352092776,1738944645342,-500.0,0.00016438,2]
[352092779,1738944645352,-500.0,0.00016438,2]
[352092781,1738944645362,-172.242099,0.00016438,2]
[352092782,1738944645371,-500.0,0.00016438,2]
[352092784,1738944645381,-500.0,0.00016438,2]
[352092787,1738944645390,-500.0,0.00016438,2]
[352092788,1738944645400,-500.0,0.00016438,2]
[352092790,1738944645409,-500.0,0.00016438,2]
[352092793,1738944645419,-500.0,0.00016438,2]
[352092795,1738944645430,-500.0,0.00016438,2]
[352092796,1738944645439,-500.0,0.00016438,2]
[352092798,1738944645449,-500.0,0.00016438,2]
[352092800,1738944645458,-1260.63,0.00016438,2]
[352092802,1738944645467,-500.0,0.00016438,2]
[352092805,1738944645477,-702.89,0.00016438,2]
[352092806,1738944645487,-500.0,0.00016438,2]
[352092808,1738944645496,-672.63,0.00016438,2]
[352092810,1738944645505,-500.0,0.00016438,2]
[352092812,1738944645515,-500.0,0.00016438,2]
[352092814,1738944645524,-839.61,0.00016438,2]
[352092816,1738944645535,-500.0,0.00016438,2]
[352092819,1738944645544,-500.0,0.00016438,2]
[352092821,1738944645554,-500.0,0.00016438,2]
[352092823,1738944645563,-500.0,0.00016438,2]
[352092825,1738944645573,-500.0,0.00016438,2]
[352092826,1738944645583,-500.0,0.00016438,2]
[352092828,1738944645592,-500.0,0.00016438,2]
[352092831,1738944645602,-174.462347,0.00016438,2]
[352092833,1738944645611,-745.08,0.00016438,2]
[352092834,1738944645621,-822.17538454,0.00016438,2]
[352092837,1738944645637,-591.73461546,0.00016438,2]
[352092840,1738944645648,-500.0,0.00016438,2]
[352092842,1738944645657,-157.36538454,0.00016438,2]
[352092845,1738944645673,-342.63461546,0.00016438,2]
[352092847,1738944645686,-500.0,0.00016438,2]
[352092849,1738944645695,-171.963157,0.00016438,2]
[352092851,1738944645705,-462.54819221,0.00016438,2]
[352092854,1738944645717,-37.45180779,0.00016438,2]
[352092856,1738944645726,-1198.35,0.00016438,2]
[352092860,1738944645736,-500.0,0.00016438,2]
[352092863,1738944645745,-562.42946562,0.00016438,2]
[352092893,1738944645886,-444.98698846,0.00016265,2]
[352092896,1738944645896,-223.43053438,0.00016438,2]
[352092900,1738944645906,-617.07,0.00016438,2]
[352092903,1738944645915,-1094.42,0.00016438,2]
[352092905,1738944645924,-500.0,0.00016438,2]
[352092908,1738944645933,-673.3,0.00016438,2]
[352092911,1738944645942,-500.0,0.00016438,2]
[352092913,1738944645951,-565.48,0.00016438,2]
[352092916,1738944645961,-849.86,0.00016438,2]
[352092919,1738944645972,-884.02,0.00016438,2]
[352092923,1738944645982,-853.84,0.00016438,2]
[352092926,1738944645992,-500.0,0.00016438,2]
[352092929,1738944646001,-500.0,0.00016438,2]
[352092932,1738944646010,-500.0,0.00016438,2]
[352092934,1738944646020,-2978.64,0.00016438,2]
[352092936,1738944646030,-500.0,0.00016438,2]
[352092938,1738944646040,-612.88,0.00016438,2]
[352092940,1738944646049,-1049.8,0.00016438,2]
[352092942,1738944646058,-500.0,0.00016438,2]
[352092944,1738944646068,-231.55938741,0.00016438,2]
[352092946,1738944646078,-898.62,0.00016438,2]
[352092948,1738944646090,-876.06,0.00016438,2]
[352092950,1738944646100,-2007.85,0.00016438,2]
[352092953,1738944646111,-1939.76,0.00016438,2]
[352092956,1738944646121,-500.0,0.00016438,2]
[352092959,1738944646131,-1034.07,0.00016438,2]
[352092962,1738944646140,-500.0,0.00016438,2]
[352092965,1738944646151,-500.0,0.00016438,2]
[352092968,1738944646160,-2142.51,0.00016438,2]
[352092971,1738944646170,-796.77,0.00016438,2]
[352092974,1738944646180,-1664.71,0.00016438,2]
[352092977,1738944646189,-174.462348,0.00016438,2]
[352092980,1738944646198,-596.42,0.00016438,2]
[352092982,1738944646208,-1586.18,0.00016438,2]
[352092985,1738944646217,-1782.66,0.00016438,2]
[352092988,1738944646226,-500.0,0.00016438,2]
[352092991,1738944646236,-500.0,0.00016438,2]
[352092994,1738944646245,-500.0,0.00016438,2]
[352092997,1738944646254,-500.0,0.00016438,2]
[352093000,1738944646264,-171.963158,0.00016438,2]
[352093002,1738944646273,-1428.53,0.00016438,2]
[352093005,1738944646283,-500.0,0.00016438,2]
[352093008,1738944646292,-500.0,0.00016438,2]
[352093011,1738944646301,-3247.91,0.00016438,2]
[352093014,1738944646311,-500.0,0.00016438,2]
[352093017,1738944646321,-500.0,0.00016438,2]
[352093020,1738944646333,-2214.32,0.00016438,2]
[352093023,1738944646342,-1225.1,0.00016438,2]
[352093026,1738944646352,-1021.64,0.00016438,2]
[352093029,1738944646362,-824.2,0.00016438,2]
[352093032,1738944646372,-500.0,0.00016438,2]
[352093035,1738944646382,-500.0,0.00016438,2]
[352093038,1738944646391,-867.31,0.00016438,2]
[352093041,1738944646401,-500.0,0.00016438,2]
[352093045,1738944646411,-2943.94,0.00016438,2]
[352093049,1738944646420,-1362.04,0.00016438,2]
[352093053,1738944646429,-870.11,0.00016438,2]
[352093056,1738944646439,-500.0,0.00016438,2]
[352093059,1738944646449,-500.0,0.00016438,2]
[352093062,1738944646458,-500.0,0.00016438,2]
[352093065,1738944646469,-776.53,0.00016438,2]
[352093068,1738944646478,-500.0,0.00016438,2]
[352093071,1738944646488,-500.0,0.00016438,2]
[352093074,1738944646499,-3318.86,0.00016438,2]
[352093077,1738944646509,-768.28,0.00016438,2]
[352093080,1738944646520,-864.43,0.00016438,2]
[352093083,1738944646530,-1944.55,0.00016438,2]
[352093086,1738944646540,-500.0,0.00016438,2]
[352093089,1738944646550,-500.0,0.00016438,2]
[352093091,1738944646560,-2285.32,0.00016438,2]
[352093094,1738944646570,-500.0,0.00016438,2]
[352093097,1738944646582,-174.462348,0.00016438,2]
[352093100,1738944646592,-877.96,0.00016438,2]
[352093103,1738944646601,-3194.72,0.00016438,2]
[352093106,1738944646612,-605.26,0.00016438,2]
[352093109,1738944646622,-987.45,0.00016438,2]
[352093112,1738944646631,-500.0,0.00016438,2]
[352093115,1738944646641,-500.0,0.00016438,2]
[352093118,1738944646651,-500.0,0.00016438,2]
[352093121,1738944646661,-2034.11,0.00016438,2]
[352093125,1738944646674,-500.0,0.00016438,2]
[352093128,1738944646688,-1044.53,0.00016438,2]
[352093131,1738944646698,-500.0,0.00016438,2]
[352093134,1738944646707,-841.78,0.00016438,2]
[352093137,1738944646717,-500.0,0.00016438,2]
[352093140,1738944646728,-500.0,0.00016438,2]
[352093143,1738944646738,-269.98,0.00016438,2]
[352093145,1738944646750,-171.963158,0.00016438,2]
[352093147,1738944646761,-1037.02,0.00016438,2]
[352093149,1738944646771,-636.25,0.00016438,2]
[352093152,1738944646781,-500.0,0.00016438,2]
[352093155,1738944646790,-1935.89,0.00016438,2]
[352093158,1738944646799,-500.0,0.00016438,2]
[352093161,1738944646808,-500.0,0.00016438,2]
[352093163,1738944646817,-500.0,0.00016438,2]
[352093167,1738944646827,-500.0,0.00016438,2]
[352093170,1738944646838,-563.8,0.00016438,2]
[352093173,1738944646847,-500.0,0.00016438,2]
[352093175,1738944646857,-2350.05,0.00016438,2]
[352093179,1738944646866,-500.0,0.00016438,2]
[352093182,1738944646875,-2251.38,0.00016438,2]
[352093184,1738944646885,-2525.57,0.00016438,2]
[352093187,1738944646894,-2640.86,0.00016438,60]
[352093190,1738944646904,-521.09,0.00016438,2]
[352093193,1738944646914,-503.19789908,0.00016438,2]
[352093196,1738944646924,-902.86,0.00016438,2]
[352093199,1738944646933,-500.0,0.00016438,2]
[352093202,1738944646944,-500.0,0.00016438,2]
[352093206,1738944646954,-500.0,0.00016438,2]
[352093209,1738944646964,-500.0,0.00016438,2]
[352093212,1738944646973,-500.0,0.00016438,2]
[352093214,1738944646982,-1561.4,0.00016438,2]
[352093216,1738944646992,-500.0,0.00016438,2]
[352093220,1738944647002,-500.0,0.00016438,2]
[352093223,1738944647012,-1170.5138294,0.00016463,2]
[352093225,1738944647021,-1645.84043715,0.00016482,2]
[352093228,1738944647031,-1645.84043715,0.00016482,2]
[352093232,1738944647041,-989.04,0.0001649,2]